bitfinex-derivatives/quotes_BTCF0:USTF0_20250609
["timestamp","ask_amount","ask_price","bid_price","bid_amount"]
[1749485371101,1.88018187,107860.0,107850.0,0.09274287]
[1749485371310,1.88018187,107860.0,107850.0,0.27809857]
[1749485371506,1.66651078,107860.0,107850.0,0.27809857]
[1749485373614,1.88018187,107860.0,107850.0,0.27809857]
[1749485374417,1.67056738,107860.0,107850.0,0.27809857]
[1749485375114,1.87316738,107860.0,107850.0,0.27809857]
[1749485377913,2.02706738,107860.0,107850.0,0.27809857]
[1749485378214,1.87316738,107860.0,107850.0,0.27809857]
[1749485378716,2.08683847,107860.0,107850.0,0.27809857]
[1749485383317,2.13186929,107860.0,107850.0,0.27809857]
[1749485383721,1.87316738,107860.0,107850.0,0.27809857]
[1749485383926,1.91819721,107860.0,107850.0,0.27809857]
[1749485384114,1.87316738,107860.0,107850.0,0.27809857]
[1749485384313,1.91821937,107860.0,107850.0,0.27809857]
[1749485386419,1.39645937,107860.0,107850.0,0.27809857]
[1749485386618,1.03565937,107860.0,107850.0,0.27809857]
[1749485387114,1.55753937,107860.0,107850.0,0.49176966]
[1749485388018,1.03565937,107860.0,107850.0,0.49176966]
[1749485388221,1.55765937,107860.0,107850.0,0.49176966]
[1749485389410,1.51260738,107860.0,107850.0,0.49176966]
[1749485389823,1.51260738,107860.0,107850.0,0.27809857]
[1749485391620,1.87340738,107860.0,107850.0,0.27809857]
[1749485394625,1.87340738,107860.0,107850.0,0.09274287]
[1749485394626,2.13219508,107860.0,107850.0,0.09274287]
[1749485395025,2.13219508,107860.0,107850.0,0.27809827]
[1749485395918,2.13219508,107860.0,107850.0,0.09274287]
[1749485396419,2.13219508,107860.0,107850.0,0.27809827]
[1749485397214,2.13219508,107860.0,107850.0,0.09274287]
[1749485397728,2.13219508,107860.0,107850.0,0.27809817]
[1749485398025,2.13219508,107860.0,107850.0,0.09274287]
[1749485398422,2.28609508,107860.0,107850.0,0.09274287]
[1749485398927,2.38988617,107860.0,107850.0,0.09274287]
[1749485399125,0.1853553,107850.0,107840.0,0.00013894]
[1749485399330,1.06609748,107850.0,107840.0,0.00013894]
[1749485399524,1.11119854,107850.0,107840.0,0.09285601]
[1749485399721,0.89752745,107850.0,107840.0,0.09285601]
[1749485400623,1.20549636,107850.0,107840.0,0.27822851]
[1749485400829,0.89752745,107850.0,107840.0,0.27822851]
[1749485401032,1.41916745,107850.0,107840.0,0.27822851]
[1749485401221,1.42016745,107850.0,107840.0,0.27822851]
[1749485403028,0.89852745,107850.0,107840.0,0.27822851]
[1749485403226,1.20665636,107850.0,107840.0,0.27822851]
[1749485403626,1.20705636,107850.0,107840.0,0.27822851]
[1749485404224,1.1619553,107850.0,107840.0,0.27822851]
[1749485410033,1.37968299,107850.0,107840.0,0.27822851]
[1749485412337,1.37940299,107850.0,107840.0,0.27822851]
[1749485412730,0.6442119,107850.0,107840.0,0.27822851]
[1749485412931,1.37960299,107850.0,107840.0,0.27822851]
[1749485413941,1.37952299,107850.0,107840.0,0.27822851]
[1749485414942,0.85788299,107850.0,107840.0,0.27822851]
[1749485415241,1.37948299,107850.0,107840.0,0.27822851]
[1749485416342,1.1658119,107850.0,107840.0,0.27822851]
[1749485420243,1.1617553,107850.0,107840.0,0.27822851]
[1749485423643,1.37542639,107850.0,107840.0,0.27822851]
[1749485425953,1.58909748,107850.0,107840.0,0.09285601]
[1749485426138,1.41993447,107850.0,107840.0,0.09285601]
[1749485428954,1.57373447,107850.0,107840.0,0.09285601]
[1749485429557,1.57373447,107850.0,107840.0,0.27822721]
[1749485431653,1.05213447,107850.0,107840.0,0.27822721]
[1749485431853,0.89833447,107850.0,107840.0,0.27822721]
[1749485432157,1.41893447,107850.0,107840.0,0.27822721]
[1749485432359,1.41853447,107850.0,107840.0,0.27822721]
[1749485432662,1.41893447,107850.0,107840.0,0.27822721]
[1749485438863,1.20526338,107850.0,107840.0,0.27822721]
[1749485439762,0.84446338,107850.0,107840.0,0.27822721]
[1749485440064,1.1607553,107850.0,107840.0,0.4918983]
[1749485440261,1.1607553,107850.0,107840.0,0.27822721]
[1749485440459,1.37402639,107850.0,107840.0,0.27822721]
[1749485440662,1.37442639,107850.0,107840.0,0.27822721]
[1749485440863,1.37442639,107850.0,107840.0,0.09285601]
[1749485441156,1.41895289,107850.0,107840.0,0.09285601]
[1749485443160,1.63262398,107850.0,107840.0,0.09285601]
[1749485444660,1.67602736,107850.0,107840.0,0.09285601]
[1749485445063,1.46235627,107850.0,107840.0,0.09285601]
[1749485445256,1.67602736,107850.0,107840.0,0.09285601]
[1749485445654,1.46235627,107850.0,107840.0,0.09285601]
[1749485449468,1.61615627,107850.0,107840.0,0.09285601]
[1749485451359,1.3590818,107850.0,107840.0,0.09285601]
[1749485451566,1.57275289,107850.0,107840.0,0.09285601]
[1749485452771,1.57265603,107850.0,107840.0,0.09285601]
[1749485454762,0.1853883,107830.0,107820.0,0.17708826]
[1749485455073,0.1854055,107820.0,107810.0,1.10703535]
[1749485455473,0.1854055,107820.0,107810.0,0.74623535]
[1749485455773,0.1834055,107820.0,107810.0,0.83898682]
[1749485456372,0.1834055,107820.0,107810.0,0.84198682]
[1749485456965,0.1834055,107820.0,107810.0,0.83898682]
[1749485457166,0.7042055,107820.0,107810.0,0.83898682]
[1749485457462,0.1834055,107820.0,107810.0,0.83898682]
[1749485457662,0.7041655,107820.0,107810.0,1.19978682]
[1749485457969,0.73768373,107820.0,107810.0,1.19978682]
[1749485458170,0.0004,107820.0,107810.0,1.44595791]
[1749485458470,0.0004,107820.0,107810.0,1.84668563]
[1749485458471,0.42288,107820.0,107810.0,1.84668563]
[1749485458775,0.70630014,107830.0,107820.0,0.1854055]
[1749485458974,0.18554014,107830.0,107820.0,1.18390405]
[1749485459176,0.70658014,107830.0,107820.0,1.18390405]
[1749485459375,0.70698014,107830.0,107820.0,1.27665552]
[1749485460074,0.70898014,107830.0,107820.0,1.27665552]
[1749485460578,0.18794014,107830.0,107820.0,1.27665552]
[1749485460977,0.18794014,107830.0,107820.0,1.13209915]
[1749485460978,0.70850014,107830.0,107820.0,1.13209915]
[1749485461277,0.70890014,107830.0,107820.0,1.13209915]
[1749485461669,0.70890014,107830.0,107820.0,1.27665552]
[1749485462576,0.70890014,107830.0,107820.0,1.06298443]
[1749485463274,0.7087612,107830.0,107820.0,1.12059204]
[1749485463472,0.69384306,107830.0,107820.0,1.12059204]
[1749485463674,0.69384306,107830.0,107820.0,1.06295635]
[1749485464882,0.69384306,107830.0,107820.0,1.06701295]
[1749485469579,0.69384306,107830.0,107820.0,1.26917693]
[1749485470580,0.69384306,107830.0,107820.0,1.12464864]
[1749485471486,0.72644306,107830.0,107820.0,1.12464864]
[1749485471679,0.75954306,107830.0,107820.0,0.91097755]
[1749485473090,0.75954306,107830.0,107820.0,0.55017755]
[1749485473388,0.7444854,107830.0,107820.0,0.55017755]
[1749485476086,0.7444854,107830.0,107820.0,0.48437755]
[1749485476482,0.7444854,107830.0,107820.0,0.69804864]
[1749485476688,0.7444854,107830.0,107820.0,0.48437755]
[1749485476878,0.7444854,107830.0,107820.0,0.69804864]
[1749485477186,0.7444854,107830.0,107820.0,0.48437755]
[1749485478492,0.7444854,107830.0,107820.0,0.42684955]
[1749485479596,1.1052854,107830.0,107820.0,0.42684955]
[1749485482996,1.31895649,107830.0,107820.0,0.42684955]
[1749485483496,1.1052854,107830.0,107820.0,0.42684955]
[1749485486900,0.7443654,107830.0,107820.0,0.62901353]
[1749485487196,1.1051654,107830.0,107820.0,0.62901353]
[1749485487396,1.09010716,107830.0,107820.0,0.62901353]
[1749485490094,1.09010716,107830.0,107820.0,0.42684955]
[1749485490798,1.09010716,107830.0,107820.0,0.62901353]
[1749485491093,0.72930716,107830.0,107820.0,0.98981353]
[1749485491295,0.72930716,107830.0,107820.0,0.84517755]
[1749485492397,0.72922716,107830.0,107820.0,0.48437755]
[1749485492608,0.72922716,107830.0,107820.0,0.69804864]
[1749485492794,0.72922716,107830.0,107820.0,1.05884864]
[1749485492795,0.20846716,107830.0,107820.0,1.05884864]
[1749485492997,0.55564,107830.0,107820.0,1.27251973]
[1749485493195,0.7410283,107830.0,107820.0,1.51037556]
[1749485493395,0.7406283,107830.0,107820.0,1.30820948]
[1749485493695,0.7410283,107830.0,107820.0,1.09453839]
[1749485493896,0.55564,107830.0,107820.0,0.94988466]
[1749485494100,0.55564,107830.0,107820.0,1.09453744]
[1749485494892,0.7406283,107830.0,107820.0,1.09453744]
[1749485495297,0.7410283,107830.0,107820.0,1.09453744]
[1749485495707,0.7410283,107830.0,107820.0,0.94988466]
[1749485496104,0.52304,107830.0,107820.0,1.16355575]
[1749485497008,0.52304,107830.0,107820.0,1.36571973]
[1749485497500,0.0024,107830.0,107820.0,1.51036567]
[1749485497803,0.09801894,107840.0,107830.0,0.1853883]
[1749485498008,0.54842391,107840.0,107830.0,1.02532337]
[1749485498306,0.54842391,107840.0,107830.0,1.11806624]
[1749485498307,0.54882391,107840.0,107830.0,1.11806624]
[1749485498693,0.54882391,107840.0,107830.0,1.26257026]
[1749485498894,0.54882391,107840.0,107830.0,1.06040628]
[1749485502208,0.52117894,107840.0,107830.0,1.06040628]
[1749485504205,0.73805004,107840.0,107830.0,0.91590226]
[1749485504599,0.73805004,107840.0,107830.0,0.63893117]
[1749485504800,0.80065004,107840.0,107830.0,0.63893117]
[1749485505811,0.80065004,107840.0,107830.0,0.85260226]
[1749485508312,0.80065004,107840.0,107830.0,0.99710628]
[1749485510915,0.28001004,107840.0,107830.0,0.99710628]
[1749485511117,0.80057004,107840.0,107830.0,0.99710628]
[1749485517416,0.80057004,107840.0,107830.0,0.42263519]
[1749485517720,0.80057004,107840.0,107830.0,0.63630628]
[1749485524917,0.80057004,107840.0,107830.0,0.69396624]
[1749485525823,0.78551384,107840.0,107830.0,0.69396624]
[1749485527626,0.78551384,107840.0,107830.0,0.83858046]
[1749485527818,0.78551384,107840.0,107830.0,0.63641648]
[1749485528524,0.99918493,107840.0,107830.0,0.27813117]
[1749485528720,0.78551384,107840.0,107830.0,0.42276416]
[1749485528928,0.78551384,107840.0,107830.0,0.62492814]
[1749485529126,0.78551384,107840.0,107830.0,0.63643525]
[1749485529926,0.26495384,107840.0,107830.0,0.63643525]
[1749485530121,0.60006274,107840.0,107830.0,0.99723525]
[1749485530330,0.78543384,107840.0,107830.0,0.99723525]
[1749485530526,0.78583384,107840.0,107830.0,0.99723525]
[1749485533331,0.26535384,107840.0,107830.0,0.99723525]
[1749485533621,0.78583384,107840.0,107830.0,0.99723525]
[1749485533827,0.78583384,107840.0,107830.0,1.09609185]
[1749485534126,0.60046274,107840.0,107830.0,1.09609185]
[1749485534623,0.78583384,107840.0,107830.0,1.09609185]
[1749485534930,0.78583384,107840.0,107830.0,1.09203525]
[1749485535225,0.60046274,107840.0,107830.0,1.09141801]
[1749485535920,0.07998274,107840.0,107830.0,1.09141801]
[1749485536115,0.07998274,107840.0,107830.0,1.29358199]
[1749485536315,0.07998274,107840.0,107830.0,1.148949]
[1749485536519,0.60046274,107840.0,107830.0,1.148949]
[1749485537228,0.58540735,107840.0,107830.0,1.14893556]
[1749485538530,0.58540735,107840.0,107830.0,0.94677158]
[1749485539426,0.77077845,107840.0,107830.0,1.09142825]
[1749485541229,0.25029845,107840.0,107830.0,0.73062825]
[1749485541527,0.77077845,107840.0,107830.0,1.09142825]
[1749485542734,0.77077845,107840.0,107830.0,0.94677158]
[1749485543233,0.77077845,107840.0,107830.0,1.09146402]
[1749485544631,0.77077845,107840.0,107830.0,0.94677158]
[1749485544832,0.77077845,107840.0,107830.0,0.88347158]
[1749485545131,0.77077845,107840.0,107830.0,1.08563556]
[1749485547130,0.75572282,107840.0,107830.0,1.08563556]
[1749485549438,0.75572282,107840.0,107830.0,0.69333556]
[1749485550339,0.78692282,107840.0,107830.0,0.69333556]
[1749485550731,0.78692282,107840.0,107830.0,0.4396076]
[1749485551032,1.36076323,107840.0,107830.0,0.4396076]
[1749485551229,1.56336323,107840.0,107830.0,0.4396076]
[1749485551429,0.3879883,107830.0,107820.0,0.53227023]
[1749485551630,0.99502871,107830.0,107820.0,0.38756948]
[1749485551831,0.99502871,107830.0,107820.0,0.27814837]
[1749485552031,0.99502871,107830.0,107820.0,0.09274287]
[1749485552236,0.99502871,107830.0,107820.0,0.27814837]
[1749485552539,0.99502871,107830.0,107820.0,0.09274287]
[1749485552740,0.99502871,107830.0,107820.0,0.27814837]
[1749485554240,0.99602871,107830.0,107820.0,0.27814837]
[1749485554642,1.58086871,107830.0,107820.0,0.27814837]
[1749485555942,0.4865883,107830.0,107820.0,0.27814837]
[1749485556241,1.0070683,107830.0,107820.0,0.27814837]
[1749485556441,1.3678683,107830.0,107820.0,0.27814837]
[1749485559247,1.0070683,107830.0,107820.0,0.85198878]
[1749485559539,0.2683,107830.0,107820.0,0.85198878]
[1749485559746,0.2372,107830.0,107820.0,1.12922919]
[1749485560046,0.75728,107830.0,107820.0,1.27392994]
[1749485560246,0.75768,107830.0,107820.0,1.27392994]
[1749485560638,0.72448,107830.0,107820.0,1.27392994]
[1749485561650,0.0014,107830.0,107820.0,1.27392994]
[1749485561947,0.42364,107830.0,107820.0,1.27392994]
[1749485562244,0.42404,107830.0,107820.0,1.27392994]
[1749485563343,0.42304,107830.0,107820.0,1.27392994]
[1749485565045,0.42304,107830.0,107820.0,1.47609392]
[1749485565246,0.42304,107830.0,107820.0,1.27392994]
[1749485565642,0.0004,107830.0,107820.0,1.27392994]
[1749485565941,0.42304,107830.0,107820.0,1.27392994]
[1749485566147,0.42264,107830.0,107820.0,1.27392994]
[1749485566351,0.42304,107830.0,107820.0,1.27392994]
[1749485567547,0.0004,107830.0,107820.0,1.27392994]
[1749485567748,0.42304,107830.0,107820.0,1.27392994]
[1749485569350,0.42304,107830.0,107820.0,1.12922919]
[1749485570549,0.42304,107830.0,107820.0,1.13122919]
[1749485570746,0.82147101,107830.0,107820.0,0.45554287]
[1749485571052,1.27917101,107830.0,107820.0,0.09474287]
[1749485571549,1.28078507,107830.0,107820.0,0.09474287]
[1749485571947,1.32514331,107830.0,107820.0,0.09474287]
[1749485572351,1.66788732,107830.0,107820.0,0.09474287]
[1749485574155,1.41788732,107830.0,107820.0,0.09474287]
[1749485575255,1.37352908,107830.0,107820.0,0.09474287]
[1749485576152,1.4178694,107830.0,107820.0,0.09474287]
[1749485577866,1.20482899,107830.0,107820.0,0.09474287]
[1749485578066,1.4178694,107830.0,107820.0,0.09474287]
[1749485578360,1.37352908,107830.0,107820.0,0.09474287]
[1749485580563,1.41762545,107830.0,107820.0,0.09474287]
[1749485580961,1.37352908,107830.0,107820.0,0.09474287]
[1749485581160,1.52732908,107830.0,107820.0,0.02129967]
[1749485581357,2.03439063,107830.0,107820.0,7e-08]
[1749485581562,2.07767628,107830.0,107820.0,7e-08]
[1749485583667,0.1854249,107810.0,107800.0,0.00049901]
[1749485583871,1.64058531,107810.0,107800.0,0.00049901]
[1749485584172,1.73608531,107810.0,107800.0,0.09324188]
[1749485584360,1.88988531,107810.0,107800.0,0.09324188]
[1749485584565,1.98264531,107810.0,107800.0,0.09324188]
[1749485584761,2.02658131,107810.0,107800.0,0.09324188]
[1749485585169,1.98264531,107810.0,107800.0,0.09324188]
[1749485585472,1.98264531,107810.0,107800.0,0.09624188]
[1749485586170,0.7125748,107800.0,107770.0,0.2957562]
[1749485586371,0.7125748,107800.0,107770.0,0.1854856]
[1749485586372,0.75931701,107780.0,107770.0,0.1854856]
[1749485586567,0.72531701,107780.0,107770.0,0.1854856]
[1749485586767,0.79081701,107780.0,107770.0,0.09316007]
[1749485586968,0.79081701,107780.0,107770.0,0.09276007]
[1749485587170,0.81594287,107780.0,107770.0,0.27865387]
[1749485587769,1.33650287,107780.0,107770.0,0.27865387]
[1749485588370,1.33750287,107780.0,107770.0,0.28565387]
[1749485588969,1.33750287,107780.0,107770.0,0.28525387]
[1749485589168,1.33750287,107780.0,107770.0,0.28565387]
[1749485589371,1.33750287,107780.0,107770.0,0.28525387]
[1749485589576,1.41341432,107780.0,107770.0,0.28525387]
[1749485589977,1.41341432,107780.0,107770.0,0.09976007]
[1749485590367,1.41341432,107780.0,107770.0,0.10016007]
[1749485590568,1.41341432,107780.0,107770.0,0.09976007]
[1749485590773,1.41341432,107780.0,107770.0,0.10016007]
[1749485591073,1.98769432,107780.0,107770.0,0.09976007]
[1749485591274,1.98769432,107780.0,107770.0,0.10016007]
[1749485591881,1.98769432,107780.0,107760.0,0.00013894]
[1749485591882,0.1854938,107770.0,107760.0,0.00013894]
[1749485592179,1.37663421,107770.0,107760.0,0.09292483]
[1749485592380,1.37663421,107770.0,107750.0,0.0028]
[1749485592381,0.185511,107760.0,107750.0,0.0028]
[1749485592574,0.185511,107760.0,107750.0,0.00242822]
[1749485592575,1.19159182,107760.0,107750.0,0.00242822]
[1749485592772,1.19159182,107760.0,107750.0,0.10778238]
[1749485592773,0.97855141,107760.0,107750.0,0.10778238]
[1749485592971,0.82475141,107760.0,107750.0,0.09521411]
[1749485593184,0.91755142,107760.0,107750.0,0.09561411]
[1749485593383,0.93749211,107760.0,107750.0,0.10820654]
[1749485593585,0.1855282,107750.0,107740.0,0.00024629]
[1749485593785,1.37536861,107750.0,107740.0,0.01288335]
[1749485594083,1.37536861,107750.0,107740.0,0.10570874]
[1749485594288,1.37536861,107750.0,107740.0,0.0930494]
[1749485594486,1.37536861,107750.0,107740.0,0.10565835]
[1749485594689,1.37536861,107750.0,107740.0,0.10564764]
[1749485595081,1.01656861,107750.0,107740.0,0.0940494]
[1749485595283,1.37736861,107750.0,107740.0,0.0940494]
[1749485595785,1.37736861,107750.0,107740.0,0.098106]
[1749485596490,0.85676861,107750.0,107740.0,0.098106]
[1749485596987,1.37748861,107750.0,107740.0,0.0940494]
[1749485597785,1.37748861,107750.0,107740.0,0.2795948]
[1749485597985,0.6124282,107750.0,107740.0,0.49263521]
[1749485598186,1.1003482,107750.0,107740.0,0.49263521]
[1749485598386,1.1003482,107750.0,107740.0,0.55793521]
[1749485599200,0.5796282,107750.0,107740.0,0.55793521]
[1749485599492,0.5796282,107750.0,107740.0,0.3448948]
[1749485599693,1.1003482,107750.0,107740.0,0.3448948]
[1749485600387,0.5796282,107750.0,107740.0,0.3448948]
[1749485600793,1.1003882,107750.0,107740.0,0.3448948]
[1749485603900,1.1003882,107750.0,107740.0,0.3489514]
[1749485604393,0.5483282,107750.0,107740.0,0.3489514]
[1749485604694,1.0691282,107750.0,107740.0,0.3489514]
[1749485606894,1.0691282,107750.0,107740.0,0.163406]
[1749485607091,1.31486861,107750.0,107740.0,0.098106]
[1749485607291,1.34546861,107750.0,107740.0,0.2836513]
[1749485607492,1.34546861,107750.0,107740.0,0.098106]
[1749485607694,1.34546861,107750.0,107740.0,0.098506]
[1749485608094,1.34546861,107750.0,107740.0,0.2840513]
[1749485608797,1.34546861,107750.0,107740.0,0.3141513]
[1749485609093,1.38878613,107750.0,107740.0,0.3141513]
[1749485609291,1.35818613,107750.0,107740.0,0.3465513]
[1749485610292,1.14514572,107750.0,107740.0,0.3465513]
[1749485610494,1.14514572,107750.0,107740.0,0.55959171]
[1749485610695,1.11244572,107750.0,107740.0,0.55959171]
[1749485611200,1.11244572,107750.0,107740.0,0.3465513]
[1749485611903,1.32548613,107750.0,107740.0,0.3465513]
[1749485612105,1.39008613,107750.0,107740.0,0.3141513]
[1749485612400,1.39008613,107750.0,107740.0,0.2840513]
[1749485613993,1.17704572,107750.0,107740.0,0.2840513]
[1749485614201,1.39008613,107750.0,107740.0,0.098506]
[1749485614501,1.39008613,107750.0,107740.0,0.098106]
[1749485614706,1.39008613,107750.0,107740.0,0.098506]
[1749485617798,1.17704572,107750.0,107740.0,0.098506]
[1749485618002,1.39008613,107750.0,107740.0,0.098506]
[1749485619207,1.43337178,107750.0,107740.0,0.098506]
[1749485621200,1.49108598,107750.0,107740.0,0.098506]
[1749485621600,0.72594557,107750.0,107740.0,0.2840507]
[1749485621900,1.18907137,107750.0,107740.0,0.3479507]
[1749485623208,0.66823137,107750.0,107740.0,0.3479507]
[1749485623411,1.18903137,107750.0,107740.0,0.56099111]
[1749485624498,0.62494572,107750.0,107740.0,0.56099111]
[1749485624699,1.14578572,107750.0,107740.0,0.56099111]
[1749485625108,1.18907137,107750.0,107740.0,0.56099111]
[1749485625606,1.14578572,107750.0,107740.0,0.56099111]
[1749485625909,1.11248572,107750.0,107740.0,0.56099111]
[1749485626406,0.59164572,107750.0,107740.0,0.56099111]
[1749485626911,0.75168572,107750.0,107740.0,0.56099111]
[1749485628606,0.27852391,107760.0,107740.0,0.73624641]
[1749485628795,0.36752301,107760.0,107750.0,0.49186771]
[1749485628994,0.88836301,107760.0,107750.0,0.49186771]
[1749485629212,0.84574541,107760.0,107750.0,0.49186771]
[1749485629397,0.84574541,107760.0,107750.0,0.58467513]
[1749485630408,0.32490541,107760.0,107750.0,0.58467513]
[1749485630608,0.84574541,107760.0,107750.0,0.58467513]
[1749485630803,0.00023921,107760.0,107750.0,0.94547513]
[1749485631009,0.00323921,107760.0,107750.0,1.09087032]
[1749485631304,0.61170931,107760.0,107750.0,1.09087032]
[1749485631507,0.42619921,107760.0,107750.0,1.09087032]
[1749485631705,0.61170931,107760.0,107750.0,1.09087032]
[1749485632710,0.42619921,107760.0,107750.0,1.09087032]
[1749485632915,0.61170931,107760.0,107750.0,1.09087032]
[1749485633208,0.42619921,107760.0,107750.0,1.09087032]
[1749485633404,0.61170931,107760.0,107750.0,1.09087032]
[1749485633599,0.00323921,107760.0,107750.0,1.18367032]
[1749485633814,0.42615921,107760.0,107750.0,1.18367032]
[1749485635805,0.42615921,107760.0,107750.0,1.09087032]
[1749485636411,0.42615921,107760.0,107750.0,0.94647513]
[1749485636709,0.42615921,107760.0,107750.0,1.09087032]
[1749485636910,0.00323921,107760.0,107750.0,1.09087032]
[1749485637107,0.42611921,107760.0,107750.0,1.09087032]
[1749485637309,0.42611921,107760.0,107750.0,0.94647513]
[1749485637801,0.42611921,107760.0,107750.0,1.09087032]
[1749485638209,0.42611921,107760.0,107750.0,0.94647513]
[1749485638813,0.42611921,107760.0,107750.0,1.09087032]
[1749485639210,0.42611921,107760.0,107750.0,0.94647513]
[1749485641398,0.0004,107770.0,107760.0,0.1855101]
[1749485641605,2.822e-05,107770.0,107760.0,1.27307811]
[1749485642008,2.822e-05,107770.0,107760.0,1.36588122]
[1749485642213,2.822e-05,107770.0,107760.0,1.56803449]
[1749485642409,2.822e-05,107770.0,107760.0,1.4236393]
[1749485642706,0.44804829,107780.0,107770.0,0.39853331]
[1749485643013,0.44804829,107780.0,107770.0,1.00040559]
[1749485643211,0.44804829,107780.0,107770.0,1.09318959]
[1749485643403,0.44804829,107780.0,107770.0,1.18597548]
[1749485643404,0.02516829,107780.0,107770.0,1.18597548]
[1749485643605,0.50692829,107790.0,107780.0,0.1854757]
[1749485643804,0.50692829,107790.0,107780.0,0.82431611]
[1749485644102,0.50732829,107790.0,107780.0,0.91709339]
[1749485644711,0.08444829,107790.0,107780.0,0.91709339]
[1749485644912,0.50688829,107790.0,107780.0,0.91709339]
[1749485645215,0.84356,107800.0,107790.0,0.1854585]
[1749485645508,0.86454267,107800.0,107790.0,0.85529891]
[1749485645812,0.44382267,107800.0,107790.0,0.94807619]
[1749485646315,0.44422267,107800.0,107790.0,0.94807619]
[1749485646708,0.44922267,107800.0,107790.0,0.94907619]
[1749485646909,0.02598267,107800.0,107790.0,1.1621166]
[1749485647117,0.42824,107800.0,107790.0,1.1621166]
[1749485647307,0.0054,107800.0,107790.0,1.1621166]
[1749485647511,0.20424142,107820.0,107810.0,0.1854241]
[1749485647713,0.65920142,107820.0,107810.0,0.75926451]
[1749485647912,0.84460832,107820.0,107810.0,0.39846451]
[1749485648107,0.84460832,107820.0,107810.0,0.27819278]
[1749485648314,0.84460832,107820.0,107810.0,0.49123319]
[1749485648518,0.65920142,107820.0,107810.0,0.49123319]
[1749485648819,0.84500832,107820.0,107810.0,0.49123319]
[1749485649217,0.65960142,107820.0,107810.0,0.49123319]
[1749485649616,0.6814148,107820.0,107810.0,0.49123319]
[1749485649822,0.8688217,107820.0,107810.0,0.49123319]
[1749485650708,0.8298217,107820.0,107810.0,0.49123319]
[1749485651410,0.6444148,107820.0,107810.0,0.85203319]
[1749485651616,0.6444148,107820.0,107810.0,0.88423319]
[1749485652215,0.8298217,107820.0,107810.0,0.88423319]
[1749485652417,0.6444148,107820.0,107810.0,0.88423319]
[1749485653007,0.1232148,107820.0,107810.0,0.88423319]
[1749485653216,0.0024,107820.0,107810.0,0.88423319]
[1749485653512,0.42508,107820.0,107810.0,0.94883319]
[1749485653717,0.42564,107820.0,107810.0,0.94883319]
[1749485653913,0.0024,107820.0,107810.0,0.94883319]
[1749485654215,0.0024,107820.0,107810.0,1.2546256]
[1749485654420,0.0004,107820.0,107810.0,1.2556256]
[1749485654718,0.0978,107830.0,107820.0,0.1854069]
[1749485654912,0.521,107830.0,107820.0,1.03618772]
[1749485655310,0.5214,107830.0,107820.0,1.12893059]
[1749485656115,0.0024,107830.0,107820.0,1.48973059]
[1749485657623,0.0024,107830.0,107820.0,1.06364977]
[1749485657815,0.0024,107830.0,107820.0,1.48973059]
[1749485658020,0.002,107830.0,107820.0,1.48973059]
[1749485658221,0.0024,107830.0,107820.0,1.48973059]
[1749485660426,0.002,107830.0,107820.0,1.48973059]
[1749485660726,0.0024,107830.0,107820.0,1.48973059]
[1749485660928,0.0024,107830.0,107820.0,1.49378719]
[1749485663725,0.002,107830.0,107820.0,1.49378719]
[1749485664230,0.0032,107830.0,107820.0,1.49378719]
[1749485664618,0.0032,107830.0,107820.0,1.53311435]
[1749485665322,0.0032,107830.0,107820.0,1.49378719]
[1749485666325,0.0032,107830.0,107820.0,1.06770637]
[1749485666528,0.0032,107830.0,107820.0,1.49378719]
[1749485674528,0.0032,107830.0,107820.0,1.24794678]
[1749485674729,0.0361,107830.0,107820.0,1.24794678]
[1749485675137,0.0667,107830.0,107820.0,1.24794678]
[1749485676337,0.0361,107830.0,107820.0,1.24794678]
[1749485676637,0.0032,107830.0,107820.0,1.46098719]
[1749485676832,0.0032,107830.0,107820.0,1.49168719]
[1749485677033,0.0036,107830.0,107820.0,1.49168719]
[1749485677438,0.0032,107830.0,107820.0,1.49168719]
[1749485677636,0.0036,107830.0,107820.0,1.49168719]
[1749485677837,0.0036,107830.0,107820.0,1.49178802]
[1749485678143,0.0032,107830.0,107820.0,1.49178802]
[1749485678735,0.0036,107830.0,107820.0,1.49178802]
[1749485678937,0.0006,107830.0,107820.0,1.49178802]
[1749485680037,0.0002,107830.0,107820.0,1.0657072]
[1749485680240,0.0006,107830.0,107820.0,1.49178802]
[1749485680542,0.24208329,107850.0,107840.0,0.185373]
[1749485680743,0.27308329,107850.0,107840.0,1.12001341]
[1749485681038,0.27308329,107850.0,107840.0,1.15101341]
[1749485681246,0.27308329,107850.0,107840.0,1.24375628]
[1749485681435,0.27348329,107850.0,107840.0,1.24375628]
[1749485681842,0.27448329,107850.0,107840.0,1.24375628]
[1749485682749,0.34814427,107850.0,107840.0,1.24375628]
[1749485682940,0.14554427,107850.0,107840.0,1.24375628]
[1749485683942,0.17714427,107850.0,107840.0,1.24375628]
[1749485685846,0.15514427,107850.0,107840.0,1.24375628]
[1749485689849,0.15514427,107850.0,107840.0,1.02722856]
[1749485690048,0.15514427,107850.0,107840.0,0.88295628]
[1749485690351,0.15514427,107850.0,107840.0,1.02722856]
[1749485690947,0.15514427,107850.0,107840.0,0.81418815]
[1749485691353,0.15514427,107850.0,107840.0,1.02722856]
[1749485692553,0.15514427,107850.0,107840.0,0.81418815]
[1749485692747,0.15514427,107850.0,107840.0,1.02722856]
[1749485692947,0.13314427,107850.0,107840.0,1.02722856]
[1749485693553,0.10154427,107850.0,107840.0,1.02722856]
[1749485694451,0.07466098,107850.0,107840.0,1.65894996]
[1749485694647,0.07506098,107850.0,107840.0,1.47800955]
[1749485695343,0.11328636,107850.0,107840.0,1.47800955]
[1749485695851,0.11228636,107850.0,107840.0,0.65578153]
[1749485696056,0.51068257,107850.0,107840.0,0.42262826]
[1749485696351,1.45532257,107850.0,107840.0,0.27811587]
[1749485696547,1.24228216,107850.0,107840.0,0.27811587]
[1749485697347,1.05692636,107850.0,107840.0,0.27811587]
[1749485697847,1.05692636,107850.0,107840.0,0.49115628]
[1749485698047,0.69712636,107850.0,107840.0,0.27811587]
[1749485698850,0.69712636,107850.0,107840.0,0.42262826]
[1749485699449,1.05792636,107850.0,107840.0,0.42262826]
[1749485700156,1.24328216,107850.0,107840.0,0.42262826]
[1749485700361,1.05792636,107850.0,107840.0,0.42262826]
[1749485700654,1.24328216,107850.0,107840.0,0.42262826]
[1749485700855,1.05792636,107850.0,107840.0,0.42262826]
[1749485702954,0.93588257,107850.0,107840.0,0.23725526]
[1749485703254,0.93588257,107850.0,107820.0,0.39300083]
[1749485703255,0.1853902,107830.0,107820.0,0.3304906]
[1749485703454,0.1854074,107820.0,107810.0,0.37628469]
[1749485703754,0.457,107820.0,107810.0,0.37628469]
[1749485703955,0.97764,107820.0,107810.0,0.53753838]
[1749485704252,1.16314823,107820.0,107810.0,0.53753838]
[1749485704457,0.00010083,107820.0,107810.0,1.11137879]
[1749485704657,0.00013894,107830.0,107820.0,0.1854074]
[1749485704956,0.00013894,107830.0,107820.0,1.17579548]
[1749485705257,0.13867472,107850.0,107840.0,0.185373]
[1749485705460,0.62524098,107850.0,107840.0,0.39841341]
[1749485705651,0.62524098,107850.0,107840.0,0.46221341]
[1749485705852,0.62524098,107850.0,107840.0,0.55495628]